bitfinex-derivatives/quotes_BTCF0:USTF0_20251208
["timestamp","ask_amount","ask_price","bid_price","bid_amount"]
[1765212510921,0.081726,90124.0,90123.0,0.007]
[1765212511627,0.081726,90124.0,90123.0,0.08604896]
[1765212511827,0.080726,90124.0,90123.0,0.004]
[1765212512017,0.06863,90123.0,90122.0,0.07904896]
[1765212512219,0.0797262,90122.0,90121.0,0.07904896]
[1765212512532,0.06863,90121.0,90120.0,0.07904896]
[1765212513126,0.0797265,90120.0,90119.0,0.0110965]
[1765212513926,0.06863,90120.0,90119.0,0.0110965]
[1765212514626,0.001,90120.0,90119.0,0.0841165]
[1765212514819,0.06879636,90133.0,90132.0,0.07102]
[1765212515017,0.09376218,90133.0,90132.0,0.07102]
[1765212515329,0.06879636,90133.0,90132.0,0.07102]
[1765212516618,0.06979636,90133.0,90132.0,0.07102]
[1765212517233,0.00516636,90133.0,90132.0,0.07202]
[1765212518318,0.02207,90152.0,90132.0,0.07202]
[1765212518319,0.0555,90152.0,90151.0,0.07102]
[1765212518527,0.12835172,90166.0,90165.0,0.07102]
[1765212518833,0.0907,90162.0,90161.0,0.0473914]
[1765212519015,0.11566454,90162.0,90161.0,0.0473914]
[1765212519220,0.11566454,90162.0,90161.0,0.0821114]
[1765212519221,0.05839454,90162.0,90161.0,0.0821114]
[1765212519519,0.02496454,90162.0,90161.0,0.0821114]
[1765212519826,0.06863,90170.0,90169.0,0.0821105]
[1765212520016,0.09359203,90170.0,90169.0,0.0821105]
[1765212520822,0.02496203,90170.0,90169.0,0.0821105]
[1765212521027,0.05839203,90170.0,90169.0,0.0821105]
[1765212521221,0.08039203,90170.0,90169.0,0.0841105]
[1765212521824,0.13766203,90170.0,90169.0,0.0841105]
[1765212522026,0.14066203,90170.0,90169.0,0.0851105]
[1765212522430,0.11859203,90170.0,90169.0,0.0851105]
[1765212522944,0.10559203,90170.0,90169.0,0.0851105]
[1765212523233,0.12703203,90170.0,90169.0,0.0851105]
[1765212526133,0.12703203,90170.0,90169.0,0.0140905]
[1765212526325,0.12703203,90170.0,90169.0,0.003]
[1765212527430,0.12703203,90170.0,90169.0,0.06878]
[1765212527630,0.12703203,90170.0,90169.0,0.003]
[1765212528437,0.06515,90160.0,90159.0,0.0110917]
[1765212528628,0.09011203,90160.0,90159.0,0.0110917]
[1765212528826,0.02496203,90160.0,90142.0,0.0110937]
[1765212529030,0.08659,90153.0,90152.0,0.07703886]
[1765212529230,0.11155203,90153.0,90152.0,0.07703886]
[1765212530024,0.11155203,90153.0,90152.0,0.07803886]
[1765212530524,0.11455203,90153.0,90152.0,0.07803886]
[1765212531434,0.11455203,90153.0,90152.0,0.01225886]
[1765212531839,0.11455203,90153.0,90152.0,0.07803886]
[1765212532145,0.11655203,90153.0,90152.0,0.07903886]
[1765212532433,0.11955203,90153.0,90152.0,0.07903886]
[1765212532639,0.11955203,90153.0,90152.0,0.07803886]
[1765212532640,0.11755203,90153.0,90152.0,0.07803886]
[1765212532831,0.12055203,90153.0,90152.0,0.07903886]
[1765212533228,0.03396203,90153.0,90152.0,0.07903886]
[1765212533631,0.02796203,90153.0,90152.0,0.07803886]
[1765212533831,0.03396203,90153.0,90152.0,0.07903886]
[1765212534231,0.02796203,90153.0,90152.0,0.08453886]
[1765212534446,0.03396203,90153.0,90152.0,0.08553886]
[1765212535734,0.02696203,90153.0,90152.0,0.08453886]
[1765212535931,0.02896203,90153.0,90152.0,0.08453886]
[1765212536132,0.02996203,90153.0,90152.0,0.08453886]
[1765212536327,0.02996203,90153.0,90152.0,0.07703886]
[1765212536534,0.09511203,90153.0,90152.0,0.07803886]
[1765212537230,0.09511203,90153.0,90152.0,0.01225886]
[1765212538732,0.09511203,90153.0,90152.0,0.07803886]
[1765212538938,0.09511203,90153.0,90152.0,0.04568886]
[1765212539535,0.09511203,90153.0,90152.0,0.07803886]
[1765212540140,0.09511203,90153.0,90152.0,0.04568886]
[1765212540541,0.09511203,90153.0,90152.0,0.01225886]
[1765212541343,0.06066,90142.0,90141.0,0.0110938]
[1765212541540,0.08562203,90142.0,90141.0,0.08188502]
[1765212541741,0.08562203,90142.0,90141.0,0.0409838]
[1765212542537,0.08562203,90142.0,90141.0,0.0703438]
[1765212543248,0.08562203,90142.0,90141.0,0.0110938]
[1765212543438,0.08662203,90142.0,90141.0,0.0130938]
[1765212544143,0.08662203,90142.0,90141.0,0.002]
[1765212544442,0.08762203,90142.0,90134.0,0.01153444]
[1765212544636,0.08562203,90141.0,90140.0,0.0110939]
[1765212545030,0.08562203,90141.0,90140.0,0.0703439]
[1765212546142,0.09262203,90141.0,90140.0,0.0723439]
[1765212547346,0.09462203,90141.0,90140.0,0.0723439]
[1765212547836,0.09462203,90141.0,90140.0,0.0130939]
[1765212548037,0.09462203,90141.0,90140.0,0.002]
[1765212549444,0.06066,90119.0,90118.0,0.07044281]
[1765212550141,0.06066,90119.0,90118.0,0.01119281]
[1765212550346,0.06066,90119.0,90118.0,0.04108281]
[1765212550744,0.06166,90119.0,90118.0,0.07244281]
[1765212551242,0.06266,90119.0,90118.0,0.07344281]
[1765212551847,0.06266,90119.0,90098.0,0.0110992]
[1765212551848,0.06066,90116.0,90098.0,0.0110992]
[1765212552047,0.06066,90116.0,90080.0,0.00747163]
[1765212552048,0.08573275,90116.0,90090.0,0.23205265]
[1765212552247,0.08573275,90116.0,90106.0,0.0110981]
[1765212552443,0.08573275,90116.0,90108.0,0.0110979]
[1765212552749,0.08573275,90116.0,90100.0,0.01139957]
[1765212552948,0.08681991,90116.0,90115.0,0.0041097]
[1765212553349,0.09381991,90116.0,90115.0,0.0061097]
[1765212553850,0.09381991,90116.0,90115.0,0.0031097]
[1765212554444,0.05816,90105.0,90104.0,0.0110984]
[1765212554636,0.05826953,90105.0,90104.0,0.0110984]
[1765212555138,0.05816,90100.0,90098.0,0.0110992]
[1765212555338,0.05816,90100.0,90090.0,0.00111001]
[1765212555339,0.05816,90100.0,90099.0,1.98e-06]
[1765212555653,0.0692601,90091.0,90090.0,0.00111001]
[1765212555856,0.06936963,90091.0,90090.0,0.00111001]
[1765212556651,0.05816,90070.0,90069.0,0.07904896]
[1765212556952,0.05816,90066.0,90065.0,0.00111032]
[1765212558248,0.05816,90054.0,90053.0,0.0111047]
[1765212558963,0.05816,90054.0,90053.0,0.0723047]
[1765212559251,0.05827534,90054.0,90053.0,0.0111047]
[1765212559549,0.05827534,90054.0,90053.0,0.0723047]
[1765212559743,0.06027534,90054.0,90053.0,0.0753047]
[1765212559944,0.06127534,90054.0,90053.0,0.0783047]
[1765212560748,0.06127534,90054.0,90053.0,0.006]
[1765212561453,0.07893534,90054.0,90053.0,0.006]
[1765212561852,0.07893534,90054.0,90040.0,0.00111062]
[1765212562155,0.05816,90041.0,90040.0,0.00111062]
[1765212562362,0.05827811,90041.0,90040.0,0.00111062]
[1765212563058,0.05827811,90041.0,90030.0,0.07904896]
[1765212563059,0.05816,90031.0,90030.0,0.07904896]
[1765212563351,0.05816,90029.0,90028.0,0.14024896]
[1765212563754,0.05816,90029.0,90028.0,0.0612]
[1765212564146,0.05816,90028.0,90027.0,0.0899707]
[1765212564347,0.05827206,90028.0,90027.0,0.1511707]
[1765212565259,0.00011206,90028.0,90027.0,0.072308]
[1765212565955,0.00111206,90028.0,90027.0,0.072308]
[1765212566160,0.00311206,90028.0,90027.0,0.072308]
[1765212566662,0.03269206,90028.0,90027.0,0.15114231]
[1765212566861,0.06127206,90028.0,90027.0,0.11005431]
[1765212567048,0.05816,90027.0,90026.0,0.07883431]
[1765212567354,0.05816,90026.0,90025.0,0.0612]
[1765212567951,0.05816,90026.0,90025.0,0.03122]
[1765212568149,0.05816,90024.0,90022.0,0.07883431]
[1765212568454,0.05816,90023.0,90022.0,0.07883431]
[1765212568758,0.05816,90022.0,90020.0,0.07883431]
[1765212568952,0.001,90027.0,90020.0,0.07883431]
[1765212568953,0.05816,90021.0,90020.0,0.07883431]
[1765212569148,0.05816,90021.0,90019.0,0.07883431]
[1765212569349,0.05916,90026.0,90025.0,0.0612]
[1765212569858,0.00011206,90028.0,90023.0,0.0111084]
[1765212569859,0.00011206,90028.0,90027.0,0.0612]
[1765212570363,0.05816,90022.0,90021.0,0.07883431]
[1765212570657,0.00011206,90028.0,90014.0,0.07883431]
[1765212570658,0.05816,90016.0,90014.0,0.07883431]
[1765212570867,0.05829471,90016.0,90010.0,0.07883431]
[1765212571166,0.05829471,90016.0,90007.0,0.07883431]
[1765212571461,0.0692705,90006.0,90005.0,9.224e-05]
[1765212571849,0.06936418,90006.0,90005.0,9.224e-05]
[1765212572253,0.05816,89994.0,89993.0,0.09825531]
[1765212572448,0.07582,89991.0,89990.0,0.00111124]
[1765212573357,0.05816,89972.0,89971.0,0.0612]
[1765212573655,0.05816,89970.0,89969.0,0.011115]
[1765212573854,0.05816,89966.0,89965.0,0.01222715]
[1765212574060,0.02971335,89972.0,89971.0,0.0612]
[1765212574247,0.05829335,89972.0,89971.0,0.0612]
[1765212574452,0.05829335,89972.0,89971.0,0.03122]
[1765212574756,0.05816,89969.0,89965.0,0.00111155]
[1765212574955,0.05816,89966.0,89965.0,0.07342715]
[1765212575155,0.05816,89966.0,89965.0,0.01222715]
[1765212575462,0.05816,89966.0,89965.0,0.06231155]
[1765212575463,0.02958,89966.0,89965.0,0.06231155]
[1765212575656,0.05816,89966.0,89965.0,0.06231155]
[1765212576259,0.05916,89966.0,89965.0,0.06231155]
[1765212576580,0.004,89966.0,89965.0,0.06231155]
[1765212577958,0.00013335,89972.0,89971.0,0.0723149]
[1765212578256,7e-08,89980.0,89979.0,0.0612]
[1765212578464,0.29137425,90010.0,89991.0,0.0287723]
[1765212578652,0.05816,89992.0,89980.0,0.01766]
[1765212578853,0.05816,89987.0,89986.0,0.0423329]
[1765212579159,0.05816,89987.0,89969.0,0.01766]
[1765212579160,0.05816,89983.0,89982.0,0.0111135]
[1765212579352,0.0582526,89983.0,89982.0,0.0111135]
[1765212579657,9.26e-05,89983.0,89982.0,0.0723135]
[1765212581656,9.26e-05,89983.0,89982.0,0.0733135]
[1765212581858,0.0602526,89983.0,89982.0,0.0733135]
[1765212582063,0.0662526,89983.0,89982.0,0.0733135]
[1765212582450,0.0662526,89983.0,89982.0,0.001]
[1765212583264,0.06075,89975.0,89974.0,0.00016667]
[1765212584657,0.06175,89975.0,89974.0,0.00116667]
[1765212585354,0.06075,89966.0,89965.0,0.00111155]
[1765212585766,0.0718655,89966.0,89965.0,0.00111155]
[1765212585950,0.06075,89955.0,89954.0,0.00029]
[1765212586151,0.06082965,89955.0,89954.0,0.00029]
[1765212586664,0.06075,89950.0,89949.0,0.0738875]
[1765212586862,0.06082965,89955.0,89954.0,0.073887]
[1765212588162,0.06082965,89955.0,89954.0,0.041367]
[1765212588371,0.06482965,89955.0,89954.0,0.041367]
[1765212588765,0.06482965,89955.0,89954.0,0.073887]
[1765212589066,0.00707965,89955.0,89954.0,0.073887]
[1765212589571,0.03667965,89955.0,89954.0,0.073887]
[1765212590776,0.06782965,89955.0,89954.0,0.06277]
[1765212590963,0.06075,89947.0,89946.0,0.0413679]
[1765212591271,0.06075,89947.0,89946.0,0.0738879]
[1765212592164,0.06275,89947.0,89946.0,0.0738879]
[1765212592971,0.003,89947.0,89946.0,0.0738879]
[1765212593362,0.06375,89947.0,89946.0,0.0413679]
[1765212593555,0.06375,89947.0,89946.0,0.0738879]
[1765212593874,0.06075,89941.0,89940.0,0.00111186]
[1765212594170,0.06075,89941.0,89940.0,0.03136186]
[1765212594667,0.06088912,89941.0,89940.0,0.00111186]
[1765212595463,0.06088912,89941.0,89920.0,0.01712]
[1765212595464,0.06075,89937.0,89933.0,0.0111196]
[1765212596461,0.06075,89934.0,89933.0,0.0111196]
[1765212596664,0.06075,89930.0,89929.0,0.06277]
[1765212596870,0.0718699,89930.0,89929.0,0.03025]
[1765212597072,0.06075,89927.0,89926.0,0.0111204]
[1765212597262,0.06075,89927.0,89926.0,0.03025]
[1765212597460,0.06084822,89927.0,89926.0,0.03025]
[1765212598166,0.06084822,89927.0,89919.0,0.00022242]
[1765212598167,0.06075,89920.0,89919.0,0.00022242]
[1765212598376,0.07852,89920.0,89919.0,0.00022242]
[1765212599170,0.07852,89920.0,89892.0,0.01712]
[1765212599171,0.06075,89916.0,89903.0,0.0111232]
[1765212599470,0.06075,89916.0,89915.0,0.06388217]
[1765212599769,0.06166,89917.0,89916.0,0.0430117]
[1765212599971,0.00012429,89920.0,89915.0,0.00111217]
[1765212599972,0.06166,89916.0,89915.0,0.00111217]
[1765212600362,0.06166,89899.0,89898.0,0.03189]
[1765212600663,9.513e-05,89899.0,89898.0,0.06345]
[1765212601164,0.03125676,89907.0,89906.0,0.06345]
[1765212601366,0.00016676,89907.0,89906.0,0.0745729]
[1765212601957,0.01,89917.0,89906.0,0.0745729]
[1765212602163,0.003,89917.0,89916.0,0.0745717]
[1765212602769,0.29137425,89940.0,89925.0,0.0291505]
[1765212603070,0.08807814,89939.0,89938.0,0.03189]
[1765212603256,0.08807814,89939.0,89938.0,0.06345]
[1765212603464,0.02641814,89939.0,89938.0,0.06345]
[1765212603973,0.00016686,89941.0,89940.0,0.08148]
[1765212604270,0.02658174,89941.0,89940.0,0.08148]
[1765212604463,0.02658174,89941.0,89940.0,0.06345]
[1765212604464,0.08824174,89941.0,89940.0,0.06345]
[1765212604871,0.00899,89940.0,89925.0,0.01803]
[1765212605167,0.06166,89926.0,89925.0,0.03189]
[1765212605675,0.04709,89939.0,89938.0,0.06345]
[1765212605876,0.04241044,89939.0,89938.0,0.06345]
[1765212606869,0.04241044,89939.0,89938.0,0.0745689]
[1765212607574,0.04441044,89939.0,89938.0,0.0745689]
[1765212608170,0.02841044,89939.0,89938.0,0.0745689]
[1765212608474,0.05957595,89956.0,89955.0,0.06345]
[1765212608670,0.12123595,89956.0,89936.0,0.01803]
[1765212608879,0.06366,89939.0,89938.0,0.03189]
[1765212609070,0.011119,89938.0,89925.0,0.0111204]
[1765212609272,0.002,89939.0,89916.0,0.03712]
[1765212609576,0.06166,89933.0,89932.0,0.0111196]
[1765212609779,0.03125676,89937.0,89936.0,0.0430092]
[1765212610575,0.03125676,89937.0,89936.0,0.0745692]
[1765212611174,0.00016676,89937.0,89936.0,0.0745692]
[1765212611566,0.00716676,89937.0,89936.0,0.0745692]
[1765212612068,0.00916676,89937.0,89936.0,0.0755692]
[1765212612765,0.00816676,89937.0,89936.0,0.0745692]
[1765212613778,0.00416676,89937.0,89936.0,0.0745692]
[1765212614276,0.00116676,89937.0,89936.0,0.0745692]
[1765212614473,0.00316676,89937.0,89936.0,0.0745692]
[1765212616175,0.00216676,89937.0,89936.0,0.0745692]
[1765212616472,0.05957595,89960.0,89959.0,0.06108]
[1765212617378,0.05957595,89961.0,89960.0,0.0721962]
[1765212617678,0.00016676,89968.0,89962.0,0.072196]
[1765212617679,0.05957595,89964.0,89962.0,0.072196]
[1765212617880,0.05957595,89966.0,89965.0,0.0721956]
[1765212618087,0.05957595,89967.0,89965.0,0.0721956]
[1765212618380,0.05974271,89968.0,89967.0,0.0721954]
[1765212618578,0.00016676,89968.0,89967.0,0.0721954]
[1765212619274,0.00016676,89968.0,89967.0,0.08334149]
[1765212619472,0.00116676,89968.0,89967.0,0.08434149]
[1765212620175,0.05957595,89977.0,89975.0,0.0111144]
[1765212620382,0.05957595,89980.0,89979.0,0.06108]
[1765212620566,0.05957595,89981.0,89980.0,0.0721938]
[1765212621180,0.02579845,89981.0,89980.0,0.0721938]
[1765212621478,0.00016676,89989.0,89988.0,0.0900028]
[1765212621680,0.02569821,89989.0,89988.0,0.0900028]
[1765212621982,0.09923346,90007.0,90006.0,0.0111105]
[1765212622285,0.09923346,90013.0,90008.0,0.06108]
[1765212622472,0.09923346,90016.0,90008.0,0.06108]
[1765212622783,0.09923346,90024.0,90008.0,0.06108]
[1765212622971,0.00016665,90018.0,90017.0,0.0721892]
[1765212623578,0.09923346,90035.0,90034.0,0.06108]
[1765212623878,0.09923346,90035.0,90024.0,0.01947]
[1765212623879,0.09923346,90038.0,90037.0,0.0479]
[1765212624181,0.09923346,90040.0,90039.0,0.0479]
[1765212624383,0.09923346,90046.0,90038.0,0.0111066]
[1765212624682,0.09923346,90048.0,90047.0,0.0479]
[1765212624878,0.16191168,90049.0,90048.0,0.0111054]
[1765212625082,0.06257,90043.0,90042.0,0.0111061]
[1765212625282,0.08153,90038.0,90037.0,0.001]
[1765212625675,0.08553,90038.0,90037.0,0.002]
[1765212625872,0.08553,90038.0,90037.0,0.0131067]
[1765212626184,0.004,90038.0,90037.0,0.0610067]
[1765212626570,0.06257,90048.0,90047.0,0.0111055]
[1765212626971,0.03088,90048.0,90037.0,0.002]
[1765212627174,0.08153,90038.0,90037.0,0.001]
[1765212628482,0.08953,90038.0,90037.0,0.002]
[1765212628667,0.08953,90038.0,90037.0,0.001]
[1765212629673,0.011,90038.0,90037.0,0.0499]
[1765212630474,0.04269,90038.0,90037.0,0.0499]
[1765212630675,0.011,90038.0,90037.0,0.0499]
[1765212632681,0.04269,90038.0,90037.0,0.0499]
[1765212632982,0.011,90038.0,90037.0,0.0499]
[1765212634070,0.07357,90038.0,90037.0,0.002]
[1765212635885,0.0846766,90038.0,90037.0,0.002]
[1765212636083,0.07357,90038.0,90037.0,0.002]
[1765212637700,0.07357,90038.0,90037.0,0.02595]
[1765212637987,0.011,90038.0,90037.0,0.0499]
[1765212645393,0.08225,90038.0,90037.0,0.0131067]
[1765212645592,0.08225,90038.0,90037.0,0.002]
[1765212647993,0.08225,90038.0,90037.0,0.0131067]
[1765212648193,0.08225,90038.0,90037.0,0.002]
[1765212648896,0.08225,90038.0,90037.0,0.0131067]
[1765212649088,0.08225,90038.0,90037.0,0.002]
[1765212649995,0.01888,90013.0,90005.0,0.0111107]
[1765212650195,0.01888,90013.0,90011.0,0.0111098]
[1765212650389,0.07125,90012.0,90011.0,0.0111098]
[1765212650795,0.07125,90012.0,90011.0,0.0867098]
[1765212651396,0.003,90013.0,90012.0,0.0756]
[1765212652494,0.001,90013.0,90012.0,0.0756]
[1765212652694,0.03171,90013.0,90012.0,0.0756]
[1765212652899,0.07125,90012.0,90011.0,0.002]
[1765212653092,0.07125,90012.0,90002.0,0.00016665]
[1765212653093,0.07125,90006.0,90002.0,0.01127765]
[1765212653290,0.07125,90003.0,90002.0,0.00016665]
[1765212653688,0.07125,90003.0,90002.0,0.08679095]
[1765212654392,0.004,90006.0,90005.0,0.0756]
[1765212654904,0.03471,90006.0,90005.0,0.0756]
[1765212655092,0.07125,90004.0,90003.0,0.0111109]
[1765212655294,0.07125,90004.0,90003.0,0.0438109]
[1765212656303,0.07125,90004.0,90003.0,0.0867109]
[1765212656494,0.01888,90013.0,90005.0,0.0756]
[1765212656495,0.001,90006.0,90005.0,0.0756]
[1765212657103,0.03171,90006.0,90005.0,0.0756]
[1765212657304,0.03071,90006.0,90005.0,0.0756]
[1765212657705,0.09013,90013.0,90012.0,0.0867098]
[1765212658109,0.04054,90012.0,90011.0,0.0111099]
[1765212658298,0.07125,90006.0,90005.0,0.002]
[1765212658608,0.07125,90006.0,90005.0,0.0887107]
[1765212659116,0.03071,90006.0,90005.0,0.0877107]
[1765212659408,0.0937,90013.0,90012.0,0.0827098]
[1765212659706,0.07913665,90021.0,90020.0,0.0111088]
[1765212659908,0.07913665,90021.0,90020.0,0.0515988]
[1765212660098,0.00016665,90021.0,90020.0,0.0904988]
[1765212660405,0.07897,90026.0,90025.0,0.0111082]
[1765212661110,0.07897,90021.0,90020.0,0.001]
[1765212661606,0.07897,90021.0,90020.0,0.08039]
[1765212662199,0.07897,90021.0,90020.0,0.11973826]
[1765212662413,0.07897,90021.0,90020.0,0.08039]
[1765212662618,0.08497,90021.0,90020.0,0.08139]
[1765212662798,0.08497,90021.0,90020.0,0.12119406]
[1765212663211,0.08397,90021.0,90020.0,0.12019406]
[1765212663502,0.08397,90021.0,90020.0,0.001]
[1765212663711,0.07897,90019.0,90018.0,0.03980406]
[1765212663906,0.07897,90017.0,90016.0,0.03980406]
[1765212664110,0.07897,90016.0,90015.0,0.03980406]
[1765212664407,0.07897,90015.0,90014.0,0.03980406]
[1765212665109,0.0900796,90014.0,90013.0,0.03980406]
[1765212665795,0.07897,90005.0,90002.0,0.05970162]
[1765212665999,0.07897,90003.0,90002.0,0.00016665]
[1765212666198,0.07897,89997.0,89996.0,0.05953497]
[1765212666411,0.07897,89996.0,89995.0,4.97e-06]
[1765212666618,0.07897,89987.0,89986.0,0.0111129]
[1765212667706,0.07897,89998.0,89997.0,0.0111116]
[1765212668009,0.07897,89998.0,89997.0,0.0905016]
[1765212669007,0.07897,89998.0,89997.0,0.07939]
[1765212669205,0.03811,89990.0,89989.0,0.0111126]
[1765212669405,0.07897,89987.0,89986.0,0.004]
[1765212669610,0.07897,89987.0,89986.0,0.094503]
[1765212669806,0.07897,89987.0,89986.0,0.053603]
[1765212670111,0.10255,89980.0,89979.0,0.0783864]
[1765212670305,0.10255,89980.0,89974.0,0.0783864]
[1765212670306,0.07897,89979.0,89974.0,0.0783864]
[1765212670614,0.00016665,89987.0,89974.0,0.0783864]
[1765212670813,0.01427955,89987.0,89986.0,0.004]
[1765212671416,0.41327955,89987.0,89986.0,0.002]
[1765212672312,0.51366955,89987.0,89986.0,0.0003357]
[1765212672718,0.1115039,89979.0,89978.0,0.00116665]
[1765212673606,0.1115039,89979.0,89978.0,0.00016665]
[1765212674522,0.10439,89979.0,89978.0,0.00116665]
[1765212675804,0.11339,89979.0,89978.0,0.00116665]
[1765212676106,0.11339,89979.0,89978.0,0.11917665]
[1765212676508,0.11339,89979.0,89978.0,0.00116665]
[1765212677110,0.11239,89979.0,89978.0,0.00116665]
[1765212677516,0.10339,89979.0,89978.0,0.00116665]
[1765212677725,0.11039,89979.0,89978.0,0.00116665]
[1765212678421,0.51039,89979.0,89978.0,0.00116665]
[1765212678622,0.51039,89979.0,89966.0,0.0783864]
[1765212678623,0.1111754,89967.0,89966.0,0.0783864]
[1765212678809,0.1111759,89963.0,89962.0,0.0783864]
[1765212679008,0.1111761,89961.0,89960.0,0.0783864]
[1765212679212,0.10006,89960.0,89959.0,0.0783864]
[1765212679417,0.1111763,89959.0,89957.0,0.0783864]
[1765212679820,0.10006,89956.0,89955.0,0.0783864]
[1765212680215,0.10006,89952.0,89951.0,0.0111173]
[1765212680414,0.12467507,89952.0,89951.0,0.0111173]
[1765212680825,0.13579227,89952.0,89951.0,0.0111173]
[1765212682028,0.1111772,89952.0,89951.0,0.0111173]
[1765212682419,0.10006,89952.0,89951.0,0.0111173]
[1765212682613,0.1131772,89952.0,89951.0,0.0141173]
[1765212682815,0.10206,89952.0,89951.0,0.1321273]
[1765212683020,0.04039,89952.0,89951.0,0.1321273]
[1765212683221,0.002,89952.0,89951.0,0.1321273]
[1765212683516,0.10206,89952.0,89951.0,0.0519773]
[1765212683720,0.10206,89952.0,89951.0,0.003]
[1765212684823,0.10006,89950.0,89949.0,0.00016675]
[1765212685126,0.10006,89945.0,89944.0,0.00012218]
[1765212685324,0.1111781,89945.0,89944.0,0.00012218]
[1765212686932,0.1201781,89945.0,89944.0,0.00012218]
[1765212687135,0.1241781,89945.0,89944.0,0.00012218]
[1765212688031,0.11306,89945.0,89944.0,0.00012218]
[1765212688830,0.11306,89945.0,89944.0,0.03798218]
[1765212689426,0.11306,89945.0,89944.0,0.00012218]
[1765212690819,0.1111791,89937.0,89936.0,0.00016675]
[1765212691031,0.1111791,89937.0,89907.0,0.01140806]
[1765212691032,0.1111812,89920.0,89907.0,0.01140806]
[1765212691227,0.1111812,89920.0,89915.0,0.0111218]
[1765212691623,0.1111812,89920.0,89900.0,0.0111236]
[1765212691624,0.1111812,89920.0,89918.0,0.0111213]
[1765212691825,0.1001426,89920.0,89918.0,0.0111213]
[1765212692027,0.1001426,89920.0,89919.0,0.11823242]
[1765212692518,0.0020826,89920.0,89919.0,0.11823242]
[1765212693130,0.0030826,89920.0,89919.0,0.11923242]
[1765212693334,0.0414726,89920.0,89919.0,0.11923242]
[1765212693927,0.1029726,89920.0,89919.0,0.11923242]
[1765212694734,0.1029726,89920.0,89919.0,0.00122242]
[1765212696037,0.1029726,89920.0,89919.0,0.03908242]
[1765212696334,0.0030826,89920.0,89919.0,0.11923242]
[1765212697737,0.00016675,89928.0,89927.0,0.1291303]
[1765212698730,0.09989,89946.0,89945.0,0.048978]
[1765212698938,0.12605856,89946.0,89945.0,0.129128]
[1765212699139,0.02616856,89946.0,89945.0,0.129128]
[1765212699331,0.12605856,89946.0,89945.0,0.11801]
[1765212699835,0.13005856,89946.0,89945.0,0.11801]
[1765212700036,0.03016856,89946.0,89945.0,0.11801]
[1765212700226,0.04016856,89946.0,89945.0,0.11801]
[1765212700422,0.01972176,89946.0,89945.0,0.11801]
[1765212700629,0.11961176,89946.0,89945.0,0.03786]
[1765212700835,0.03839,89941.0,89940.0,0.1528286]
[1765212701029,0.05239,89946.0,89945.0,0.0489781]
[1765212701236,0.014,89946.0,89945.0,0.1291281]
[1765212701430,0.05239,89946.0,89945.0,0.1291281]
[1765212701627,0.05239,89946.0,89945.0,0.1301281]
[1765212701824,0.11389,89946.0,89945.0,0.03886]
[1765212702025,0.11389,89946.0,89945.0,0.001]
[1765212702738,0.014,89946.0,89945.0,0.15457]
[1765212704237,0.014,89946.0,89945.0,0.1656881]
[1765212705233,0.00016675,89954.0,89953.0,0.1646871]
[1765212706128,0.05920909,89965.0,89964.0,0.2138257]
[1765212706329,0.07918334,89977.0,89976.0,0.20271]
[1765212706632,0.07918334,89979.0,89978.0,0.164684]
[1765212706827,0.07918334,89981.0,89980.0,0.15357]
[1765212707029,0.19150334,89981.0,89980.0,0.15357]
[1765212707235,0.11232,89977.0,89976.0,0.04914]
[1765212707437,0.11932,89977.0,89976.0,0.04914]
[1765212707635,0.11932,89977.0,89976.0,0.12784]
[1765212708046,0.11232,89977.0,89976.0,0.12784]
[1765212708744,0.11232,89975.0,89974.0,0.0111144]
[1765212708945,0.19204744,89975.0,89974.0,0.0111144]
[1765212709347,0.11232,89975.0,89974.0,0.0111144]
[1765212709542,0.11232,89975.0,89974.0,0.1646844]
[1765212710143,0.11332,89975.0,89974.0,0.0928144]
[1765212710451,0.05716,89975.0,89974.0,0.1676844]
[1765212711047,0.1244344,89975.0,89974.0,0.003]
[1765212711344,0.1264344,89975.0,89974.0,0.004]
[1765212712556,0.15210192,89975.0,89974.0,0.004]
[1765212713247,0.14098752,89975.0,89974.0,0.004]
[1765212720253,0.10141,89973.0,89972.0,0.00016675]
[1765212720458,0.1016168,89957.0,89956.0,0.0111166]
[1765212720648,0.1016171,89953.0,89951.0,0.0111173]
[1765212720847,0.0905,89941.0,89928.0,0.04914]
[1765212721150,0.02566752,89953.0,89928.0,0.04914]
[1765212721151,0.0905,89929.0,89928.0,0.2083902]
[1765212721352,0.0905,89926.0,89925.0,0.0111205]
[1765212721654,0.0905,89921.0,89920.0,0.00016675]
[1765212722845,0.0905,89921.0,89920.0,0.14829675]
[1765212723253,0.0925,89921.0,89920.0,0.15529675]
[1765212723656,0.002,89921.0,89920.0,0.15529675]
[1765212723855,0.04725,89921.0,89920.0,0.15629675]
[1765212725057,0.0925,89921.0,89920.0,0.15629675]
[1765212725259,0.002,89921.0,89920.0,0.15629675]
[1765212725456,0.0925,89921.0,89920.0,0.15629675]
[1765212725962,0.002,89921.0,89920.0,0.15629675]
[1765212726666,0.0925,89921.0,89920.0,0.00816675]
[1765212726955,0.103621,89921.0,89920.0,0.00816675]
[1765212727673,0.0111235,89901.0,89895.0,0.09825531]
[1765212727955,0.0111241,89896.0,89894.0,0.09825531]
[1765212728156,0.0111241,89896.0,89892.0,0.09825531]
[1765212728357,0.0111241,89896.0,89890.0,0.11049259]
[1765212728559,0.29158977,89905.0,89891.0,0.09825531]
[1765212728560,0.0111246,89893.0,89891.0,0.09825531]
[1765212728862,0.0111246,89893.0,89890.0,0.00111248]
[1765212729253,0.0111246,89893.0,89892.0,0.04299]
[1765212729563,0.0111246,89893.0,89892.0,0.007]
[1765212730254,0.0111246,89893.0,89884.0,0.00016686]
[1765212730255,0.0111254,89886.0,89885.0,0.09825531]
[1765212730756,0.0111254,89886.0,89884.0,0.09842217]
[1765212730953,0.0111254,89886.0,89884.0,0.00016686]
[1765212731557,0.0131254,89886.0,89884.0,0.00016686]
[1765212731950,0.002,89886.0,89885.0,0.14813]
[1765212732146,0.004,89886.0,89885.0,0.14813]
[1765212732357,0.004,89886.0,89885.0,0.24638531]
[1765212732555,0.004,89886.0,89885.0,0.14813]
[1765212733554,0.0111231,89905.0,89901.0,0.15327]
[1765212733750,0.0111231,89905.0,89901.0,0.07738]
[1765212733958,0.0111238,89899.0,89893.0,0.0111244]
[1765212734165,0.29175663,89902.0,89893.0,0.0111244]
[1765212734358,0.29175663,89902.0,89892.0,0.14408711]
[1765212734661,0.30288013,89902.0,89896.0,0.0111241]